bitfinex/quotes_ETHUSD_20241103
["timestamp","ask_amount","ask_price","bid_price","bid_amount"]
[1730625349623,1.632,2459.5,2459.1,4.06642]
[1730625351191,5.69795,2459.5,2458.9,0.06099588]
[1730625352290,5.69795,2459.5,2459.0,4.06661]
[1730625352827,6.674315,2459.5,2459.0,4.06661]
[1730625355537,5.66654,2459.4,2459.0,4.06661]
[1730625355748,4.06604,2459.4,2459.0,4.06661]
[1730625356021,1.6005,2459.3,2459.0,4.06661]
[1730625356248,1.6005,2459.3,2458.9,0.06099588]
[1730625356446,5.66678,2459.3,2458.9,0.06099588]
[1730625356741,6.3310705,2459.3,2458.9,0.06099588]
[1730625357706,6.3310705,2459.3,2458.9,4.12782588]
[1730625358229,5.66678,2459.3,2458.9,4.12782588]
[1730625358816,5.66678,2459.3,2458.9,0.06099588]
[1730625365531,5.66678,2459.3,2458.9,4.12784588]
[1730625366933,5.66678,2459.3,2458.9,0.06099588]
[1730625367961,5.66678,2459.3,2458.9,4.12782588]
[1730625371088,1.6005,2459.3,2458.9,5.67972588]
[1730625371253,5.72972,2459.6,2459.1,4.06642]
[1730625372483,5.72972,2459.6,2459.2,4.06634]
[1730625372681,5.72972,2459.6,2459.1,8.13285]
[1730625372840,5.72972,2459.6,2459.1,4.06642]
[1730625374271,1.6639,2459.6,2459.2,4.06633]
[1730625374954,1.6639,2459.6,2459.2,5.61823]
[1730625378081,1.6639,2459.6,2459.3,4.06607]
[1730625378293,1.6639,2459.8,2459.5,4.06578]
[1730625378602,1.6639,2460.0,2459.5,5.69899396]
[1730625378777,1.6639,2460.0,2459.7,4.06553]
[1730625383007,1.6639,2460.2,2459.9,4.0652]
[1730625383165,1.6639,2460.4,2459.9,0.08130003]
[1730625383365,1.6639,2460.4,2460.1,4.06483]
[1730625383600,1.6639,2460.4,2460.1,4.626503]
[1730625383977,1.6639,2460.4,2459.9,4.0651]
[1730625383978,5.7283,2460.4,2459.9,4.0651]
[1730625384203,5.60867,2460.3,2459.9,4.0651]
[1730625384505,5.60867,2460.3,2459.8,4.06526]
[1730625384506,5.60867,2460.3,2459.7,1.5264]
[1730625384800,9.6733,2460.3,2459.8,4.06537]
[1730625385207,5.60867,2460.3,2459.8,4.06537]
[1730625385363,5.60867,2460.3,2459.8,5.031107]
[1730625385563,1.5441,2460.1,2459.8,0.965737]
[1730625386414,1.5441,2460.1,2459.5,1.5264]
[1730625386704,1.5441,2460.1,2459.2,3.968465]
[1730625386705,5.60916,2460.0,2459.6,4.0656]
[1730625387004,1.5441,2459.9,2459.6,4.0656]
[1730625387508,5.60938,2459.9,2459.4,8.13192]
[1730625387717,5.60938,2459.9,2459.4,9.1945985]
[1730625388164,5.60938,2459.9,2459.5,4.06585]
[1730625388710,1.5441,2459.9,2459.5,4.06585]
[1730625389511,4.06532,2459.9,2459.4,5.1286385]
[1730625389818,1.5441,2459.8,2459.4,5.1286385]
[1730625390312,1.5441,2459.8,2459.4,4.06596]
[1730625390671,1.5441,2460.0,2459.6,4.06559]
[1730625393403,5.60921,2460.0,2459.5,5.59215]
[1730625393731,1.5441,2459.9,2459.5,4.06575]
[1730625394287,1.5441,2459.9,2459.5,8.13154]
[1730625394633,1.5441,2459.9,2459.5,4.06575]
[1730625395527,1.5441,2459.9,2459.5,8.13152]
[1730625395831,1.5441,2459.9,2459.6,4.06569]
[1730625398137,1.5441,2459.9,2459.5,4.06575]
[1730625398138,1.5441,2459.8,2459.5,4.06575]
[1730625399288,1.5441,2459.8,2459.3,4.0661]
[1730625399510,5.60948,2459.8,2459.4,0.5034565]
[1730625399710,1.5441,2459.8,2459.4,4.5693565]
[1730625401120,1.5441,2459.6,2459.2,0.968465]
[1730625401320,1.5441,2459.6,2459.2,4.06636]
[1730625404262,1.5441,2459.6,2459.3,4.06617]
[1730625408770,4.06534,2459.9,2459.5,4.06583]
[1730625409774,4.06533,2459.9,2459.4,5.59229]
[1730625409950,4.06533,2459.9,2459.5,4.06584]
[1730625410550,1.5441,2459.8,2459.5,4.06584]
[1730625412203,1.5441,2459.8,2459.5,4.06584]
[1730625412411,5.60949,2459.8,2459.4,4.06602]
[1730625412741,1.5441,2459.8,2459.4,8.13197]
[1730625413402,1.5441,2459.8,2459.4,4.06595]
[1730625418744,5.6095,2459.8,2459.4,4.06595]
[1730625418953,6.576975,2459.8,2459.4,4.06595]
[1730625419157,5.6095,2459.8,2459.4,4.06595]
[1730625426555,5.6095,2459.8,2459.2,5.59262]
[1730625426712,4.06583,2459.6,2459.0,5.61117]
[1730625426918,4.06507,2460.0,2459.2,4.06628]
[1730625426919,4.06562,2459.7,2459.2,4.06628]
[1730625427227,4.06578,2459.6,2459.0,4.06656]
[1730625427414,5.61335,2459.5,2459.1,0.16509375]
[1730625427620,5.61335,2459.5,2459.0,4.06656]
[1730625427820,9.6793,2459.5,2459.1,0.16509228]
[1730625428020,9.6793,2459.5,2459.0,4.06656]
[1730625428428,5.61335,2459.5,2459.0,4.06656]
[1730625428843,1.5474,2459.4,2459.0,8.13315]
[1730625430265,1.5474,2459.4,2458.8,5.61155]
[1730625430457,1.5474,2459.4,2458.9,4.23196731]
[1730625430458,1.5474,2459.3,2458.9,4.23196731]
[1730625430788,1.5474,2459.3,2458.9,4.06683]
[1730625430982,5.61385,2459.2,2458.7,4.06708]
[1730625431185,5.61385,2459.2,2458.8,0.16514809]
[1730625431344,6.6379965,2459.2,2458.8,0.16514809]
[1730625431532,2.5715465,2459.2,2458.8,0.16514809]
[1730625431757,2.5715465,2459.2,2458.8,4.06699]
[1730625432668,6.6379065,2459.2,2458.8,4.06699]
[1730625433357,2.5715465,2459.2,2458.8,4.06699]
[1730625433979,6.6379365,2459.2,2458.8,4.06699]
[1730625436750,2.20219365,2459.1,2458.8,4.06699]
[1730625436961,5.60528,2458.9,2458.6,0.63654263]
[1730625437167,5.60528,2458.9,2458.5,0.16518094]
[1730625437355,1.5384,2458.8,2458.5,0.16518094]
[1730625437552,1.5384,2458.8,2458.4,4.06759]
[1730625437553,5.60542,2458.8,2458.4,4.06759]
[1730625438693,5.60542,2458.8,2458.3,4.06783]
[1730625438694,9.67253,2458.8,2458.3,4.06783]
[1730625438860,4.06702,2458.8,2458.3,4.06783]
[1730625439061,1.5384,2458.7,2458.3,4.06783]
[1730625439393,5.6056,2458.7,2458.2,8.77259968]
[1730625439752,1.5384,2458.6,2458.2,4.06794]
[1730625440196,5.60578,2458.6,2458.2,4.06794]
[1730625440364,5.60578,2458.6,2458.1,4.12600197]
[1730625440700,1.5384,2458.5,2458.1,4.12600197]
[1730625441085,1.5384,2458.5,2458.1,0.05783197]
[1730625441258,4.06769,2458.4,2458.1,0.05783197]
[1730625441455,1.5384,2458.3,2458.1,0.05783197]
[1730625444972,1.5384,2458.3,2457.6,2.15233653]
[1730625444973,5.50181,2458.2,2457.7,4.06882]
[1730625445170,1.4338,2458.0,2457.6,4.70582653]
[1730625445382,5.50222,2458.0,2457.5,4.06907]
[1730625445682,5.50222,2458.0,2457.1,0.9066254]
[1730625445683,5.50247,2457.8,2457.2,4.06954]
[1730625445871,0.957042,2458.0,2457.2,4.06954]
[1730625445872,1.4338,2457.6,2457.2,4.06954]
[1730625446072,5.50289,2457.6,2457.1,4.1308581]
[1730625446374,5.50281,2457.6,2457.1,4.1308281]
[1730625446912,1.4338,2457.4,2457.1,4.1308281]
[1730625447073,1.4338,2457.4,2457.1,0.0610881]
[1730625447512,1.4338,2457.8,2457.6,4.069]
[1730625447722,1.4338,2457.8,2457.4,4.06923]
[1730625447903,1.4338,2457.8,2457.6,4.0689]
[1730625448411,1.4338,2458.0,2457.6,4.0689]
[1730625448626,5.50215,2458.0,2457.6,4.0689]
[1730625448776,1.4338,2458.0,2457.7,4.06874]
[1730625449123,1.4338,2458.0,2457.7,5.033994]
[1730625449290,1.4338,2458.0,2457.8,4.06865]
[1730625449673,5.50165,2458.3,2457.8,4.06865]
[1730625450593,1.4338,2458.3,2457.8,4.06865]
[1730625450780,1.4338,2458.3,2457.9,4.06849]
[1730625451518,5.50166,2458.3,2457.9,4.06849]
[1730625452828,5.50166,2458.3,2457.8,4.06867]
[1730625455505,9.5696,2458.3,2457.8,4.06867]
[1730625455705,5.50166,2458.3,2457.8,4.06867]
[1730625456790,4.06802,2458.2,2457.7,4.06884]
[1730625456991,1.4338,2458.0,2457.6,4.06898]
[1730625457218,5.50217,2458.0,2457.5,4.06905]
[1730625457722,1.4338,2458.0,2457.6,4.069]
[1730625460141,1.4338,2458.0,2457.7,4.06881]
[1730625465241,1.4338,2458.0,2457.6,4.069]
[1730625465450,1.4338,2458.0,2457.6,4.7759]
[1730625466550,1.4338,2458.0,2457.8,4.06866]
[1730625467854,1.4338,2458.0,2457.6,4.069]
[1730625468057,1.4338,2458.0,2457.6,4.06893]
[1730625468223,1.4338,2458.0,2457.6,4.06891]
[1730625468414,1.4338,2457.8,2457.4,4.06921]
[1730625468613,1.4338,2457.8,2457.2,4.06955]
[1730625468859,1.4338,2457.8,2457.4,4.06933]
[1730625469157,5.50249,2457.8,2457.4,4.06933]
[1730625470169,5.50249,2457.8,2457.2,4.06955]
[1730625470488,5.50249,2457.8,2457.3,4.06948]
[1730625472788,1.4338,2457.8,2457.5,4.06914]
[1730625481765,1.4338,2457.8,2457.4,4.06932]
[1730625486706,5.50247,2457.8,2457.4,4.06932]
[1730625487902,5.50247,2457.8,2457.3,0.97156181]
[1730625488110,5.50247,2457.8,2457.2,0.16530759]
[1730625488263,5.50247,2457.8,2457.1,1.5765881]
[1730625488612,5.50247,2457.8,2457.3,4.06943]
[1730625490785,5.50247,2457.8,2457.3,8.13884]
[1730625491022,5.50247,2457.8,2457.3,4.06941]
[1730625491405,5.50247,2457.8,2457.4,0.16554648]
[1730625491732,5.50247,2457.8,2457.3,4.06941]
[1730625491895,5.50247,2457.8,2457.4,0.16554266]
[1730625492221,5.50247,2457.8,2457.3,4.06941]
[1730625492520,5.50247,2457.8,2457.4,0.16554098]
[1730625492716,5.50247,2457.8,2457.3,4.06941]
[1730625492881,5.50247,2457.8,2457.4,0.16554069]
[1730625493082,5.50247,2457.8,2457.3,4.15079091]
[1730625493281,5.50247,2457.8,2457.4,0.1655378]
[1730625493484,5.50247,2457.8,2457.3,4.06941]
[1730625493685,5.50247,2457.8,2457.4,0.16554352]
[1730625493986,5.50247,2457.8,2457.3,4.06941]
[1730625494185,5.50247,2457.8,2457.4,0.16554264]
[1730625494395,5.50247,2457.8,2457.3,4.06941]
[1730625495338,5.50247,2457.8,2457.3,8.13884]
[1730625496040,5.50247,2457.8,2457.3,4.06941]
[1730625496244,5.50247,2457.8,2457.4,0.1655461]
[1730625496537,5.50247,2457.8,2457.3,8.13883]
[1730625496751,5.50247,2457.8,2457.4,0.16554685]
[1730625496915,5.50247,2457.8,2457.3,8.13883]
[1730625497101,5.50247,2457.8,2457.4,0.16554968]
[1730625497301,5.50247,2457.8,2457.3,8.13883]
[1730625497546,1.4338,2457.8,2457.5,4.06917]
[1730625499706,1.4338,2457.8,2457.5,4.06908]
[1730625500048,4.06836,2458.0,2457.6,4.06888]
[1730625500049,1.4971,2458.0,2457.6,4.06888]
[1730625500418,5.56546,2458.0,2457.5,8.13811]
[1730625501019,4.06853,2457.9,2457.4,4.06931]
[1730625501167,1.4971,2457.8,2457.5,0.16550926]
[1730625501369,1.4971,2457.8,2457.4,4.06931]
[1730625501668,1.4971,2457.8,2457.5,0.16552065]
[1730625501870,1.4971,2457.8,2457.4,5.03657024]
[1730625503225,4.06878,2457.8,2457.1,5.51204277]
[1730625503431,1.4971,2457.6,2457.2,5.20210169]
[1730625503676,5.56611,2457.6,2457.3,0.16553884]
[1730625503831,5.56611,2457.6,2457.2,4.06959]
[1730625504025,5.56611,2457.6,2457.3,0.16554595]
[1730625504238,5.56611,2457.6,2457.2,4.06959]
[1730625504464,1.4971,2457.6,2457.3,0.16570781]
[1730625504670,1.4971,2457.6,2457.2,4.06959]
[1730625504883,5.56614,2457.6,2457.3,0.1656784]
[1730625505081,2.460599,2457.6,2457.1,4.1307781]
[1730625505369,1.4971,2457.6,2457.2,0.16568935]
[1730625505578,1.0221,2457.4,2457.3,0.16568935]
[1730625505871,1.0221,2457.4,2457.1,0.0610881]
[1730625505872,5.600574,2457.4,2457.1,0.0610881]
[1730625506070,5.600574,2457.4,2457.2,0.16572028]
[1730625506071,5.09144,2457.4,2457.2,0.16572028]
[1730625506373,5.09144,2457.4,2457.1,0.0610881]
[1730625506578,5.09144,2457.4,2457.2,0.16571894]
[1730625506872,1.0221,2457.4,2457.1,0.0610881]
[1730625507042,1.0221,2457.4,2457.2,0.16571081]
[1730625507283,1.0221,2457.4,2457.1,4.1309181]
[1730625507554,1.0221,2457.4,2457.2,0.16571199]
[1730625507752,1.0221,2457.4,2457.1,0.0610881]
[1730625507934,1.0221,2457.4,2457.2,0.16570676]
[1730625508134,1.0221,2457.4,2457.1,4.1308281]
[1730625508336,1.0221,2457.4,2457.2,0.16572032]
[1730625508537,1.0221,2457.4,2457.1,4.1308281]
[1730625508876,1.0221,2457.4,2457.2,0.16571312]
[1730625509034,1.0221,2457.4,2457.1,4.1308281]
[1730625509243,1.0221,2457.4,2457.2,0.16571238]
[1730625509548,1.0221,2457.4,2457.1,4.1308281]
[1730625509753,1.0221,2457.4,2457.2,0.16571582]
[1730625509932,1.0221,2457.4,2457.1,4.1308281]
[1730625510144,1.0221,2457.4,2457.2,0.165713]
[1730625510389,1.0221,2457.4,2457.1,4.1308281]
[1730625510582,1.0221,2457.4,2457.2,0.16572263]
[1730625510790,4.0688,2457.8,2457.2,4.06958]
[1730625511076,1.0221,2457.6,2457.3,0.16572582]
[1730625511288,1.0221,2457.6,2457.2,4.06956]
[1730625511441,1.0221,2457.6,2457.3,0.16573366]
[1730625511632,1.0221,2457.6,2457.2,4.06956]
[1730625511867,1.0221,2457.6,2457.3,0.16573642]
[1730625512082,5.09118,2457.6,2457.2,4.06956]
[1730625512289,5.09118,2457.6,2457.3,0.16575749]
[1730625512487,5.09118,2457.6,2457.2,4.06956]
[1730625513083,5.09118,2457.6,2457.3,0.16575313]
[1730625513293,5.09118,2457.6,2457.2,4.06956]
[1730625513446,5.09118,2457.6,2457.3,0.16574452]
[1730625513652,5.09118,2457.6,2457.2,4.06956]
[1730625513865,5.09118,2457.6,2457.3,0.16576476]
[1730625514087,5.09118,2457.6,2457.2,4.06956]
[1730625514286,5.09118,2457.6,2457.3,0.16577025]
[1730625514489,5.09118,2457.6,2457.1,4.39604437]
[1730625514490,6.047872,2457.6,2457.1,4.39604437]
[1730625514664,6.047872,2457.6,2457.2,0.16577942]
[1730625514870,6.047872,2457.6,2457.3,0.16577942]
[1730625515185,6.047872,2457.6,2457.1,4.39604437]
[1730625515394,6.047872,2457.6,2457.2,0.16577332]
[1730625515614,6.047872,2457.6,2457.3,0.16577551]
[1730625515891,6.047872,2457.6,2457.1,0.40768202]
[1730625516188,5.09118,2457.6,2457.2,4.23543237]
[1730625516394,9.1603,2457.6,2457.3,0.16577237]
[1730625516563,9.1603,2457.6,2457.1,4.39610437]
[1730625516762,9.1603,2457.6,2457.2,0.1657631]
[1730625517092,0.91603,2457.5,2457.3,0.1657631]
[1730625517388,4.98524,2457.5,2457.1,4.1308981]
[1730625517688,5.09118,2457.6,2457.2,0.16573852]
[1730625517994,9.16033,2457.6,2457.1,4.1308981]
[1730625518186,9.16033,2457.6,2457.2,0.16573785]
[1730625518409,9.16033,2457.6,2457.1,4.1308981]
[1730625518724,1.0221,2457.7,2457.2,0.165729]
[1730625518853,5.09136,2457.5,2457.1,0.0610881]
[1730625519056,0.916037,2457.4,2457.1,0.0610881]
[1730625519586,4.985397,2457.4,2457.1,0.0610881]
[1730625521603,0.916037,2457.4,2457.1,0.0610881]
[1730625521810,4.06937,2457.4,2457.1,0.0610881]
[1730625527903,3.01,2458.0,2457.1,0.0610881]
[1730625527904,5.09101,2457.7,2457.2,0.5359]
[1730625528076,4.06901,2457.6,2457.2,0.5359]
[1730625528981,4.06901,2457.6,2457.1,0.14247532]
[1730625529615,4.06901,2457.6,2457.1,0.0610881]
[1730625530667,4.06901,2457.6,2457.2,4.06958]
[1730625531571,4.06901,2457.6,2457.1,0.0610881]
[1730625531772,4.06926,2457.5,2457.1,4.1309081]
[1730625534089,4.06926,2457.5,2457.1,0.0610881]
[1730625534295,0.8121,2457.4,2457.1,0.0610881]
[1730625535908,4.88154,2457.4,2457.1,0.0610881]
[1730625536828,8.95104,2457.4,2457.1,0.0610881]
[1730625537029,4.88154,2457.4,2457.1,0.0610881]
[1730625537914,0.8121,2457.4,2457.1,0.0610881]
[1730625538129,4.06919,2457.5,2457.1,0.0610881]
[1730625539626,4.88123,2457.6,2457.1,0.0610881]
[1730625539811,4.06935,2457.4,2457.1,0.0610881]
[1730625541125,5.369353,2457.6,2457.1,0.0610881]
[1730625541336,4.06918,2457.5,2457.1,0.0610881]
[1730625541492,4.06887,2457.7,2457.1,4.1308481]
[1730625541697,0.8121,2457.8,2457.3,4.06941]
[1730625541698,4.06869,2457.8,2457.3,4.06941]
[1730625542029,4.06869,2457.8,2457.3,4.91412397]
[1730625542823,4.06869,2457.8,2457.4,4.06933]
[1730625543015,4.06869,2457.8,2457.4,4.06926]
[1730625545339,8.13745,2457.8,2457.4,4.06926]
[1730625545639,8.13745,2457.8,2457.3,4.06942]
[1730625546238,4.06869,2457.8,2457.3,4.91602663]
[1730625546541,4.06869,2457.8,2457.4,0.16629318]
[1730625546700,8.13748,2457.8,2457.3,4.91602663]
[1730625546902,8.13748,2457.8,2457.4,0.16628799]
[1730625547101,8.13748,2457.8,2457.3,4.91602663]
[1730625547325,8.13748,2457.8,2457.4,0.16629175]
[1730625547534,8.13748,2457.8,2457.3,4.91602663]
[1730625547836,8.13748,2457.8,2457.4,0.16631752]
[1730625548025,8.13748,2457.8,2457.3,4.91602663]
[1730625548330,8.13748,2457.8,2457.4,0.1663268]
[1730625548533,4.06884,2457.7,2457.3,4.91602663]
[1730625548722,4.06884,2457.7,2457.4,0.16634466]
[1730625548921,4.06884,2457.7,2457.3,4.06942]
[1730625549124,4.06884,2457.7,2457.4,0.16633751]
[1730625549325,4.06884,2457.7,2457.3,4.06942]
[1730625549528,4.06884,2457.7,2457.4,0.16634988]
[1730625549733,4.06884,2457.7,2457.3,4.06942]
[1730625549947,4.06884,2457.7,2457.4,0.16635017]
[1730625550121,4.06884,2457.7,2457.3,4.06942]
[1730625550322,4.06884,2457.7,2457.4,0.16635176]
[1730625550537,4.06884,2457.7,2457.3,4.06942]
[1730625550733,4.06884,2457.7,2457.4,0.16635013]
[1730625551023,4.06884,2457.7,2457.3,4.06942]
[1730625551251,4.82234,2457.7,2457.4,0.16634734]
[1730625551565,4.82234,2457.7,2457.1,0.32726894]
[1730625551721,4.82234,2457.7,2457.2,0.16635701]
[1730625551921,4.82234,2457.7,2457.3,0.16635701]
[1730625552169,4.82234,2457.7,2457.1,0.7404775]
[1730625552347,4.82234,2457.7,2457.2,0.16636027]
[1730625552660,4.82234,2457.7,2457.3,0.16636027]
[1730625553064,4.82234,2457.7,2457.1,0.7404775]
[1730625553218,4.82234,2457.7,2457.2,0.43038322]
[1730625553419,4.82234,2457.7,2457.3,0.16635765]
[1730625553621,4.82234,2457.7,2457.2,0.26402557]
[1730625553964,4.82234,2457.7,2457.3,0.16636264]
[1730625554265,4.82234,2457.7,2457.3,4.0695]
[1730625557253,4.06869,2457.8,2457.3,4.0695]
[1730625557254,8.13749,2457.8,2457.3,4.0695]
[1730625557478,4.06869,2457.8,2457.3,4.0695]
[1730625557652,8.13749,2457.8,2457.3,4.0695]
[1730625559564,4.06886,2457.7,2457.3,4.0695]
[1730625563893,0.7827,2457.6,2457.3,4.0695]
[1730625564185,4.85173,2457.6,2457.2,4.06964]
[1730625564346,4.85173,2457.6,2457.3,0.16637839]
[1730625564561,4.85173,2457.6,2457.2,4.06964]
[1730625564766,4.85173,2457.6,2457.3,0.16637801]
[1730625564977,4.85173,2457.6,2457.2,4.06964]
[1730625565186,4.85173,2457.6,2457.3,0.16638363]
[1730625565353,0.7827,2457.6,2457.2,4.06964]
[1730625565552,0.7827,2457.6,2457.3,0.16637952]
[1730625565784,0.7827,2457.6,2457.2,4.06964]
[1730625566051,0.7827,2457.6,2457.3,0.16638281]
[1730625566291,0.7827,2457.6,2457.2,4.06964]
[1730625566494,0.7827,2457.6,2457.3,0.16638824]
[1730625566791,0.7827,2457.6,2457.2,4.06964]
[1730625566954,0.7827,2457.6,2457.3,0.16638755]
[1730625567151,0.7827,2457.6,2457.2,4.06964]
[1730625567354,0.7827,2457.6,2457.3,0.16638347]
[1730625567655,0.7827,2457.6,2457.2,4.06964]
[1730625567861,0.7827,2457.6,2457.3,0.16638843]
[1730625568075,0.7827,2457.6,2457.2,4.91630306]
[1730625568277,0.7827,2457.6,2457.3,0.16638332]
[1730625568450,0.7827,2457.6,2457.2,4.91630306]
[1730625568755,0.7827,2457.6,2457.3,0.16638891]
[1730625568952,0.7827,2457.6,2457.2,4.91630306]
[1730625569153,0.7827,2457.6,2457.3,0.16638854]
[1730625569472,0.7827,2457.6,2457.2,4.91630306]
[1730625569651,0.7827,2457.6,2457.3,0.16639725]
[1730625569860,0.7827,2457.6,2457.3,4.06949]
[1730625571299,0.7827,2457.6,2457.2,4.91630306]
[1730625571300,0.7827,2457.6,2457.1,0.0610881]
[1730625571596,0.7827,2457.6,2457.2,4.23607027]
[1730625571597,4.85182,2457.6,2457.2,4.23607027]
[1730625571751,4.85182,2457.6,2457.3,0.16642027]
[1730625571956,4.85182,2457.6,2457.2,4.06965]
[1730625572149,4.85182,2457.6,2457.3,0.1664285]
[1730625572384,4.85182,2457.6,2457.2,4.06965]
[1730625572687,4.85182,2457.6,2457.3,0.16643359]
[1730625572883,4.85182,2457.6,2457.2,4.06965]
[1730625573089,4.85182,2457.6,2457.3,0.16643802]
[1730625573297,5.743888,2457.6,2457.1,8.2005281]
[1730625573494,5.743888,2457.6,2457.2,0.16643909]
[1730625573708,5.743888,2457.6,2457.1,8.2005281]
[1730625573913,4.85182,2457.6,2457.3,0.16643684]
[1730625574075,4.85182,2457.6,2457.1,4.39710264]
[1730625574400,0.7827,2457.4,2457.2,0.16643746]
[1730625574699,0.7827,2457.4,2457.1,4.1307781]
[1730625574700,0.7827,2457.4,2457.1,0.0610881]
[1730625574911,4.85208,2457.4,2457.2,0.16645316]
[1730625575200,4.85208,2457.4,2457.1,0.0610881]
[1730625575201,9.40672,2457.4,2457.1,0.0610881]
[1730625575724,5.3373,2457.4,2457.1,0.0610881]
[1730625575879,0.7827,2457.3,2457.1,0.0610881]
[1730625577285,4.85231,2457.3,2457.1,0.0610881]
[1730625577477,5.793001,2457.3,2457.1,0.0610881]
[1730625578503,1.723391,2457.3,2457.1,0.0610881]
[1730625578667,0.7827,2457.3,2457.1,0.0610881]
[1730625579580,0.48519,2457.4,2457.1,4.1308981]
[1730625579915,4.85198,2457.5,2457.1,0.0610881]
[1730625585180,0.7827,2457.5,2457.1,4.1307881]
[1730625585378,0.7827,2457.7,2457.3,4.06942]
[1730625585688,4.85154,2457.7,2457.3,4.06942]
[1730625585897,0.7827,2457.7,2457.3,4.88940081]
[1730625587282,0.7827,2457.7,2457.4,4.06932]
[1730625588082,0.7827,2457.7,2457.3,4.88940081]
[1730625588811,0.7827,2457.7,2457.3,8.95879081]
[1730625591193,0.7827,2457.7,2457.3,4.88940081]
[1730625591398,0.7827,2457.7,2457.4,4.55826008]
[1730625597433,0.7827,2457.7,2457.4,4.06932]
[1730625601706,4.88272,2457.9,2457.4,4.06932]
[1730625602301,0.8142,2457.9,2457.4,4.06932]
[1730625602722,0.8142,2457.9,2457.5,0.16625465]
[1730625602921,0.8142,2457.9,2457.4,4.06932]
[1730625603204,0.8142,2457.9,2457.4,4.51099992]
[1730625603401,0.8142,2458.1,2457.5,0.08137809]
[1730625603731,0.8142,2458.1,2457.7,4.06876]
[1730625605137,0.8142,2458.3,2457.9,4.06848]
[1730625605440,4.88205,2458.3,2457.8,4.06858]
[1730625605643,4.88205,2458.3,2457.9,4.06849]
[1730625606011,0.8142,2458.3,2458.0,4.06829]
[1730625607540,0.8142,2458.3,2458.0,4.881968]
[1730625607715,0.8142,2458.5,2458.0,4.06829]
[1730625608047,4.06744,2458.6,2457.5,0.09136131]
[1730625608229,4.06744,2458.6,2457.6,0.16620365]
[1730625608544,4.06744,2458.6,2457.7,0.16620365]
[1730625608701,4.06744,2458.6,2457.8,0.16620365]
[1730625609024,4.06744,2458.6,2457.6,0.16620365]
[1730625609340,4.06744,2458.6,2457.7,0.16618423]
[1730625611238,4.06744,2458.6,2457.6,0.16618423]
[1730625611439,4.06744,2458.6,2458.1,4.06815]
[1730625611649,0.8067,2458.5,2458.1,4.06815]
[1730625611940,0.8067,2458.5,2458.1,8.1363]
[1730625612150,0.8067,2458.5,2458.2,4.06799]
[1730625614050,4.87422,2458.5,2458.0,4.06818]
[1730625614334,0.8067,2458.5,2458.1,4.0681]
[1730625616100,0.8067,2458.4,2458.0,4.06818]
[1730625616513,0.8067,2458.3,2458.0,4.06818]
[1730625617908,4.87458,2458.3,2457.2,3.92235627]
[1730625618218,0.8067,2458.2,2457.2,3.82272209]
[1730625618421,0.8067,2458.2,2457.2,4.8730536]
[1730625618640,0.8067,2458.2,2457.9,4.0684]
[1730625620654,4.06736,2458.6,2457.6,4.06894]
[1730625620948,0.8067,2458.1,2457.7,4.0687]
[1730625621329,0.8067,2458.1,2457.8,4.06864]
[1730625621637,0.8067,2458.1,2457.7,4.0687]
[1730625622051,4.87491,2458.1,2457.7,4.0687]
[1730625624528,8.137,2458.0,2457.7,4.0687]
[1730625625934,0.8214,2457.9,2457.5,4.06908]
[1730625626175,1.71577,2457.9,2457.5,4.06908]
[1730625626325,8.137,2457.8,2457.5,4.06908]
[1730625626528,8.137,2457.8,2457.5,8.13817]
[1730625629037,8.137,2457.8,2457.5,4.06908]
[1730625638488,8.137,2457.8,2457.5,8.13816]
[1730625638663,8.137,2457.8,2457.5,4.06908]
[1730625640568,8.137,2457.8,2457.3,4.06936]
[1730625640569,0.8214,2457.7,2457.3,4.06936]
[1730625640791,0.8214,2457.7,2457.3,4.54608856]
[1730625641486,4.89027,2457.7,2457.2,0.63683749]
[1730625641662,0.8214,2457.6,2457.1,0.22728549]
[1730625641858,0.8214,2457.6,2457.1,0.0610881]
[1730625642084,8.9584,2457.8,2457.1,0.22728549]
[1730625642303,8.9584,2457.8,2457.1,0.0610881]
[1730625642539,0.8214,2457.7,2457.1,4.34027641]
[1730625642792,0.8214,2457.7,2457.2,0.16618621]
[1730625643754,0.8214,2457.7,2457.4,4.06933]
[1730625644397,0.8214,2457.5,2457.2,4.06954]
[1730625645988,0.8214,2457.5,2457.1,0.0610881]
[1730625646203,0.8214,2457.5,2457.2,4.06965]
[1730625648062,0.8214,2457.5,2457.1,4.1307981]
[1730625648309,0.8214,2457.5,2457.1,0.0610881]
[1730625648600,0.8214,2457.3,2457.1,4.1308781]
[1730625649262,0.8214,2457.3,2457.1,0.0610881]
[1730625649506,0.8214,2457.3,2457.1,4.1309181]
[1730625653135,0.8214,2457.3,2457.1,0.0610881]
[1730625657348,0.8214,2457.3,2457.1,4.1309081]
[1730625658557,0.8214,2457.3,2457.2,4.06967]
[1730625659072,8.9584,2457.3,2457.2,4.06967]
[1730625659569,8.9584,2457.3,2457.1,4.1309081]
[1730625659861,8.9584,2457.3,2457.1,8.2006381]
[1730625660223,8.137,2457.3,2457.2,4.06967]
[1730625660422,8.137,2457.3,2457.1,4.1308981]
[1730625664340,8.137,2457.3,2457.2,4.06967]
[1730625667338,8.137,2457.3,2457.2,4.88972681]
[1730625667540,8.137,2457.3,2457.2,5.05590936]
[1730625668363,8.137,2457.3,2457.2,5.75803317]
[1730625668671,8.137,2457.3,2457.2,5.05590936]
[1730625670254,8.137,2457.3,2457.2,4.23585255]
[1730625673166,8.137,2457.3,2457.2,4.23597099]
[1730625676875,8.137,2457.3,2457.2,4.06967]
[1730625677068,8.137,2457.3,2457.2,4.23598597]
[1730625677750,8.137,2457.3,2457.2,0.16631597]
[1730625677952,9.03325,2457.3,2457.2,0.16631597]
[1730625678275,9.03325,2457.3,2457.1,4.1308981]
[1730625678794,0.8255,2457.2,2457.1,0.0610881]